[Event "*** Titled Tuesday Blitz"]
[Site "Chess.com"]
[Date "2019.05.07"]
[Round "3"]
[White "MathiasWomacka"]
[Black "stepanosinovsky"]
[Result "0-1"]
[WhiteElo "2228"]
[BlackElo "2382"]
[TimeControl "180+2"]
[EndTime "13:40:31 PDT"]
[Termination "stepanosinovsky won by resignation"]

1. e4 {[%clk 0:03:01.6]} 1... e5 {[%clk 0:03:00.6]} 2. Nf3 {[%clk 0:03:01.8]}
2... Nc6 {[%clk 0:03:02.2]} 3. Bb5 {[%clk 0:03:03]} 3... a6 {[%clk 0:03:03.4]}
4. Bxc6 {[%clk 0:03:04.2]} 4... dxc6 {[%clk 0:03:05.3]} 5. O-O {[%clk
0:03:05.6]} 5... f6 {[%clk 0:03:05.5]} 6. d4 {[%clk 0:03:06]} 6... exd4 {[%clk
0:03:07.4]} 7. Nxd4 {[%clk 0:03:07.2]} 7... c5 {[%clk 0:03:07.8]} 8. Ne2 {[%clk
0:03:07.7]} 8... Qxd1 {[%clk 0:03:09.7]} 9. Rxd1 {[%clk 0:03:09.2]} 9... Bd7
{[%clk 0:03:09.8]} 10. Nbc3 {[%clk 0:03:10.5]} 10... O-O-O {[%clk 0:03:10.5]}
11. Be3 {[%clk 0:03:10.8]} 11... Bd6 {[%clk 0:03:06.6]} 12. Bf4 {[%clk
0:03:10.9]} 12... Bc6 {[%clk 0:03:04.5]} 13. Rd2 {[%clk 0:03:05.3]} 13... Ne7
{[%clk 0:02:49.3]} 14. Rad1 {[%clk 0:03:05.3]} 14... Be5 {[%clk 0:02:36.9]} 15.
f3 {[%clk 0:02:36.7]} 15... Rxd2 {[%clk 0:02:23.1]} 16. Rxd2 {[%clk 0:02:38.6]}
16... Rd8 {[%clk 0:02:23.2]} 17. Rxd8+ {[%clk 0:02:38.6]} 17... Kxd8 {[%clk
0:02:25.1]} 18. Bxe5 {[%clk 0:02:32.2]} 18... fxe5 {[%clk 0:02:23.5]} 19. Kf2
{[%clk 0:02:33]} 19... b5 {[%clk 0:02:09.4]} 20. Nd1 {[%clk 0:02:27.3]} 20...
Bd7 {[%clk 0:02:02.6]} 21. a3 {[%clk 0:02:05.2]} 21... a5 {[%clk 0:01:58.3]} 22.
Ne3 {[%clk 0:02:03.8]} 22... Be6 {[%clk 0:01:57]} 23. g3 {[%clk 0:01:56.7]}
23... g5 {[%clk 0:01:56.4]} 24. f4 {[%clk 0:01:52.5]} 24... gxf4 {[%clk
0:01:54.6]} 25. gxf4 {[%clk 0:01:54.4]} 25... exf4 {[%clk 0:01:53.1]} 26. Nxf4
{[%clk 0:01:56.2]} 26... Bf7 {[%clk 0:01:42.3]} 27. e5 {[%clk 0:01:48.9]} 27...
Ng6 {[%clk 0:00:58.7]} 28. Nxg6 {[%clk 0:01:45.6]} 28... hxg6 {[%clk 0:00:47.9]}
29. Kf3 {[%clk 0:01:41.3]} 29... Ke7 {[%clk 0:00:39.2]} 30. Kf4 {[%clk
0:01:25.2]} 30... b4 {[%clk 0:00:31.7]} 31. h4 {[%clk 0:01:20.2]} 31... c6
{[%clk 0:00:20.2]} 32. Ng4 {[%clk 0:01:02.1]} 32... Ke6 {[%clk 0:00:21]} 33. Ke4
{[%clk 0:00:59.3]} 33... g5 {[%clk 0:00:21.3]} 34. hxg5 {[%clk 0:00:54.5]} 34...
Bg6+ {[%clk 0:00:22.6]} 35. Kf4 {[%clk 0:00:44.6]} 35... Bxc2 {[%clk 0:00:24.5]}
36. Ne3 {[%clk 0:00:45.8]} 36... Bb1 {[%clk 0:00:25]} 37. Nc4 {[%clk 0:00:45.9]}
37... a4 {[%clk 0:00:23.5]} 38. Nb6 {[%clk 0:00:46.9]} 38... Bc2 {[%clk
0:00:24]} 39. Nc4 {[%clk 0:00:32]} 39... Bd3 {[%clk 0:00:24.5]} 40. Nb6 {[%clk
0:00:27.9]} 40... Bc2 {[%clk 0:00:25.6]} 41. Nc4 {[%clk 0:00:23.4]} 41... Bb3
{[%clk 0:00:20.7]} 42. Nb6 {[%clk 0:00:21.8]} 42... c4 {[%clk 0:00:22]} 43. axb4
{[%clk 0:00:13.7]} 43... c3 {[%clk 0:00:23.2]} 44. bxc3 {[%clk 0:00:14.8]} 44...
a3 {[%clk 0:00:24.7]} 45. g6 {[%clk 0:00:12.8]} 45... a2 {[%clk 0:00:25.6]} 46.
g7 {[%clk 0:00:13.9]} 46... Kf7 {[%clk 0:00:19.3]} 47. Nd7 {[%clk 0:00:07.3]}
47... a1=Q {[%clk 0:00:18.8]} 48. Nc5 {[%clk 0:00:08.1]} 48... Qf1+ {[%clk
0:00:18.6]} 49. Ke3 {[%clk 0:00:08.6]} 49... Qe1+ {[%clk 0:00:17.6]} 50. Kd4
{[%clk 0:00:08.1]} 50... Qd1+ {[%clk 0:00:18.4]} 51. Ke4 {[%clk 0:00:09.1]}
51... Bc2+ {[%clk 0:00:18.6]} 52. Kf4 {[%clk 0:00:09.3]} 52... Qd2+ {[%clk
0:00:19.6]} 53. Kf3 {[%clk 0:00:10]} 53... Qxc3+ {[%clk 0:00:20]} 0-1

[Event "*** Titled Tuesday Blitz"]
[Site "Chess.com"]
[Date "2019.05.07"]
[Round "3"]
[White "NateSolon"]
[Black "Orange_Ghost"]
[Result "0-1"]
[WhiteElo "2524"]
[BlackElo "2660"]
[TimeControl "180+2"]
[EndTime "13:40:38 PDT"]
[Termination "Orange_Ghost won by resignation"]

1. d4 {[%clk 0:03:01.9]} 1... Nf6 {[%clk 0:03:00.7]} 2. Bf4 {[%clk 0:03:00.9]}
2... g6 {[%clk 0:02:59.2]} 3. Nc3 {[%clk 0:03:01.5]} 3... d5 {[%clk 0:02:59.7]}
4. e3 {[%clk 0:03:02.8]} 4... Bg7 {[%clk 0:03:00.6]} 5. h4 {[%clk 0:03:03.8]}
5... h5 {[%clk 0:03:00.6]} 6. Nf3 {[%clk 0:03:04.9]} 6... O-O {[%clk 0:03:00.9]}
7. Ne5 {[%clk 0:03:06.1]} 7... Bf5 {[%clk 0:03:00.5]} 8. Bd3 {[%clk 0:03:04.7]}
8... e6 {[%clk 0:03:01.8]} 9. f3 {[%clk 0:02:58.7]} 9... Nbd7 {[%clk 0:02:55.6]}
10. Be2 {[%clk 0:02:55.9]} 10... c5 {[%clk 0:02:47.7]} 11. Nxd7 {[%clk
0:02:38.2]} 11... Qxd7 {[%clk 0:02:24.9]} 12. dxc5 {[%clk 0:02:35.3]} 12... Rfc8
{[%clk 0:02:22.4]} 13. e4 {[%clk 0:02:02.5]} 13... dxe4 {[%clk 0:02:16.8]} 14.
Qxd7 {[%clk 0:02:04.4]} 14... Nxd7 {[%clk 0:02:17.7]} 15. g4 {[%clk 0:01:59.8]}
15... exf3 {[%clk 0:02:06.6]} 16. Bb5 {[%clk 0:02:00.5]} 16... Bxg4 {[%clk
0:01:35.3]} 17. Bxd7 {[%clk 0:02:00.8]} 17... Rxc5 {[%clk 0:01:37.2]} 18. O-O-O
{[%clk 0:01:48.1]} 18... Bf5 {[%clk 0:01:17.3]} 19. Bd2 {[%clk 0:01:32.5]} 19...
Rd8 {[%clk 0:01:07.5]} 20. Ba4 {[%clk 0:01:32.1]} 20... Rdc8 {[%clk 0:00:42.7]}
21. Be3 {[%clk 0:01:28.9]} 21... Ra5 {[%clk 0:00:37.7]} 22. Bb3 {[%clk 0:01:26]}
22... b5 {[%clk 0:00:32.9]} 23. Rd2 {[%clk 0:01:10]} 23... b4 {[%clk 0:00:24.4]}
24. Nd1 {[%clk 0:01:10.5]} 24... Re5 {[%clk 0:00:21.6]} 25. Bg5 {[%clk
0:01:07.8]} 25... Re2 {[%clk 0:00:22.5]} 26. Rxe2 {[%clk 0:01:03.9]} 26... fxe2
{[%clk 0:00:24.4]} 27. Ne3 {[%clk 0:01:05.7]} 27... Bd3 {[%clk 0:00:17.3]} 28.
Re1 {[%clk 0:00:45.3]} 28... Bb5 {[%clk 0:00:17.7]} 29. Ng2 {[%clk 0:00:36.4]}
29... a5 {[%clk 0:00:17.2]} 30. a4 {[%clk 0:00:26]} 30... bxa3 {[%clk 0:00:15]}
31. bxa3 {[%clk 0:00:27.9]} 31... a4 {[%clk 0:00:13.4]} 32. Ba2 {[%clk 0:00:29]}
32... Bd3 {[%clk 0:00:14.2]} 33. Bb1 {[%clk 0:00:24.8]} 33... e5 {[%clk
0:00:11.5]} 34. Kd2 {[%clk 0:00:24.6]} 34... Ba6 {[%clk 0:00:12.1]} 35. Ba2
{[%clk 0:00:20.8]} 35... Bf8 {[%clk 0:00:11.1]} 36. c4 {[%clk 0:00:20.8]} 36...
Bxa3 {[%clk 0:00:07.9]} 37. Rxe2 {[%clk 0:00:21.6]} 37... Bb4+ {[%clk
0:00:07.6]} 38. Kd3 {[%clk 0:00:22]} 38... Bd6 {[%clk 0:00:08.4]} 39. Ne3 {[%clk
0:00:22.7]} 39... Kg7 {[%clk 0:00:09.4]} 40. Nd5 {[%clk 0:00:24]} 40... Bb7
{[%clk 0:00:10.4]} 41. Rb2 {[%clk 0:00:23.5]} 41... Bc6 {[%clk 0:00:10.9]} 42.
Bf6+ {[%clk 0:00:24]} 42... Kh7 {[%clk 0:00:11.1]} 43. Rb6 {[%clk 0:00:25.3]}
43... a3 {[%clk 0:00:11.6]} 44. Ne7 {[%clk 0:00:21.6]} 44... Bxe7 {[%clk
0:00:12.4]} 45. Bxe7 {[%clk 0:00:23.5]} 45... Bd7 {[%clk 0:00:11.2]} 46. Bf6
{[%clk 0:00:23.4]} 46... Bf5+ {[%clk 0:00:11.7]} 47. Ke3 {[%clk 0:00:24.4]}
47... e4 {[%clk 0:00:12]} 48. c5 {[%clk 0:00:25]} 48... Kg8 {[%clk 0:00:11.5]}
49. c6 {[%clk 0:00:25.5]} 49... Be6 {[%clk 0:00:11.9]} 50. Kd4 {[%clk
0:00:25.9]} 50... Bxa2 {[%clk 0:00:12.5]} 51. Kxe4 {[%clk 0:00:25.5]} 51... Be6
{[%clk 0:00:13.6]} 52. Ra6 {[%clk 0:00:25.7]} 52... a2 {[%clk 0:00:14.6]} 53.
Ke5 {[%clk 0:00:26.4]} 53... Kf8 {[%clk 0:00:13.7]} 54. Kd6 {[%clk 0:00:27.4]}
54... Ke8 {[%clk 0:00:13.8]} 55. Ra7 {[%clk 0:00:27.4]} 55... Bf5 {[%clk
0:00:13.7]} 56. Ra5 {[%clk 0:00:25]} 56... Kf8 {[%clk 0:00:13.9]} 57. Ra7 {[%clk
0:00:24.5]} 57... Be4 {[%clk 0:00:14.5]} 58. Ra4 {[%clk 0:00:24.1]} 58... Bxc6
{[%clk 0:00:13.9]} 59. Rxa2 {[%clk 0:00:21.4]} 59... Be8 {[%clk 0:00:14.7]} 60.
Ra7 {[%clk 0:00:21.5]} 60... Rc6+ {[%clk 0:00:15.7]} 61. Ke5 {[%clk 0:00:22.4]}
61... Re6+ {[%clk 0:00:17.2]} 0-1

[Event "*** Titled Tuesday Blitz"]
[Site "Chess.com"]
[Date "2019.05.07"]
[Round "3"]
[White "dsanchez1973"]
[Black "AndrewMcStone"]
[Result "1/2-1/2"]
[WhiteElo "2053"]
[BlackElo "2115"]
[TimeControl "180+2"]
[EndTime "13:40:48 PDT"]
[Termination "Game drawn by repetition"]

1. e4 {[%clk 0:03:01.9]} 1... Nc6 {[%clk 0:02:58.9]} 2. d4 {[%clk 0:03:01.3]}
2... d5 {[%clk 0:02:59.6]} 3. e5 {[%clk 0:03:01.5]} 3... Bf5 {[%clk 0:03:00.2]}
4. c3 {[%clk 0:03:00.8]} 4... e6 {[%clk 0:03:01.6]} 5. Ne2 {[%clk 0:03:00.4]}
5... Qd7 {[%clk 0:02:53]} 6. Ng3 {[%clk 0:03:01.3]} 6... Bg6 {[%clk 0:02:54.1]}
7. Bb5 {[%clk 0:02:59.4]} 7... f6 {[%clk 0:02:48.7]} 8. exf6 {[%clk 0:02:56.5]}
8... Nxf6 {[%clk 0:02:45.9]} 9. O-O {[%clk 0:02:58]} 9... Bd6 {[%clk 0:02:46.6]}
10. Nd2 {[%clk 0:02:55.8]} 10... a6 {[%clk 0:02:44.9]} 11. Ba4 {[%clk
0:02:54.1]} 11... O-O {[%clk 0:02:39.9]} 12. Nf3 {[%clk 0:02:53.7]} 12... Ne4
{[%clk 0:02:29.5]} 13. Be3 {[%clk 0:02:46.8]} 13... Rae8 {[%clk 0:02:19.6]} 14.
Nh4 {[%clk 0:02:36.8]} 14... Bf5 {[%clk 0:01:27.8]} 15. Bc2 {[%clk 0:02:04]}
15... Nxg3 {[%clk 0:01:25.7]} 16. hxg3 {[%clk 0:02:03.8]} 16... Bxc2 {[%clk
0:01:25.8]} 17. Qxc2 {[%clk 0:02:04.6]} 17... e5 {[%clk 0:01:20.6]} 18. dxe5
{[%clk 0:02:03.2]} 18... Nxe5 {[%clk 0:01:17]} 19. Rad1 {[%clk 0:01:55.6]} 19...
c6 {[%clk 0:01:16.9]} 20. Bd4 {[%clk 0:01:56.6]} 20... Qg4 {[%clk 0:00:51.2]}
21. Bxe5 {[%clk 0:01:51.4]} 21... Bxe5 {[%clk 0:00:40.9]} 22. Nf3 {[%clk
0:01:52.1]} 22... Bf6 {[%clk 0:00:37.3]} 23. Rfe1 {[%clk 0:01:50.9]} 23... Qc4
{[%clk 0:00:23.2]} 24. Rxe8 {[%clk 0:01:39.3]} 24... Rxe8 {[%clk 0:00:23.9]} 25.
Nd4 {[%clk 0:01:40.9]} 25... Bxd4 {[%clk 0:00:21.1]} 26. Rxd4 {[%clk 0:01:41.2]}
26... Re1+ {[%clk 0:00:22.3]} 27. Kh2 {[%clk 0:01:42.4]} 27... Qf1 {[%clk
0:00:23.8]} 28. g4 {[%clk 0:01:43.2]} 28... Qh1+ {[%clk 0:00:19.7]} 29. Kg3
{[%clk 0:01:44.4]} 29... Rg1 {[%clk 0:00:20.9]} 30. f3 {[%clk 0:01:36.3]} 30...
Rc1 {[%clk 0:00:16.8]} 31. Qf5 {[%clk 0:01:30.8]} 31... Qe1+ {[%clk 0:00:16.2]}
32. Kf4 {[%clk 0:01:27.9]} 32... Qe7 {[%clk 0:00:07.7]} 33. Qc8+ {[%clk
0:01:26.5]} 33... Kf7 {[%clk 0:00:08.9]} 34. Kg3 {[%clk 0:01:25.7]} 34... Qe1+
{[%clk 0:00:08.8]} 35. Kf4 {[%clk 0:01:23.2]} 35... Qe7 {[%clk 0:00:07.9]} 36.
Qf5+ {[%clk 0:01:16.1]} 36... Kg8 {[%clk 0:00:08]} 37. g5 {[%clk 0:01:08]} 37...
Re1 {[%clk 0:00:07.8]} 38. Qc8+ {[%clk 0:01:03.4]} 38... Kf7 {[%clk 0:00:08.5]}
39. Kg3 {[%clk 0:01:00.6]} 39... Qe5+ {[%clk 0:00:08.2]} 40. Rf4+ {[%clk
0:00:57.1]} 40... Ke7 {[%clk 0:00:03.6]} 41. Qxb7+ {[%clk 0:00:56]} 41... Kd6
{[%clk 0:00:04.9]} 42. Qb8+ {[%clk 0:00:57]} 42... Kc5 {[%clk 0:00:06]} 43. Qxe5
{[%clk 0:00:57.2]} 43... Rxe5 {[%clk 0:00:07.9]} 44. Rf7 {[%clk 0:00:58.4]}
44... Rxg5+ {[%clk 0:00:08.9]} 45. Kf2 {[%clk 0:00:58.2]} 45... Kb6 {[%clk
0:00:05.1]} 46. g4 {[%clk 0:00:59.1]} 46... h6 {[%clk 0:00:05.1]} 47. Kg3 {[%clk
0:00:59.6]} 47... Rg6 {[%clk 0:00:06.2]} 48. f4 {[%clk 0:01:00.2]} 48... c5
{[%clk 0:00:03.9]} 49. Rd7 {[%clk 0:00:58.3]} 49... Kc6 {[%clk 0:00:04.4]} 50.
Rd8 {[%clk 0:00:59.5]} 50... c4 {[%clk 0:00:03.4]} 51. Ra8 {[%clk 0:00:58.4]}
51... Kb6 {[%clk 0:00:04.3]} 52. Rd8 {[%clk 0:00:59.1]} 52... Kc6 {[%clk
0:00:05.5]} 53. f5 {[%clk 0:00:58.7]} 53... Rg5 {[%clk 0:00:04.8]} 54. Kf4
{[%clk 0:01:00.6]} 54... Kc5 {[%clk 0:00:04.6]} 55. Ra8 {[%clk 0:00:59.7]} 55...
Kb6 {[%clk 0:00:04.2]} 56. Re8 {[%clk 0:00:57.8]} 56... Kc6 {[%clk 0:00:04.9]}
57. Re6+ {[%clk 0:00:58.8]} 57... Kb5 {[%clk 0:00:05.8]} 58. a4+ {[%clk
0:00:50.4]} 58... Kxa4 {[%clk 0:00:05.8]} 59. Rxa6+ {[%clk 0:00:51.5]} 59... Kb3
{[%clk 0:00:06.6]} 60. Rb6+ {[%clk 0:00:52.1]} 60... Kc2 {[%clk 0:00:07.6]} 61.
Rb5 {[%clk 0:00:49.1]} 61... Kc1 {[%clk 0:00:07.4]} 62. Rb6 {[%clk 0:00:25.2]}
62... Kc2 {[%clk 0:00:08.5]} 63. Rb5 {[%clk 0:00:26.1]} 63... Kc1 {[%clk
0:00:09.7]} 64. Rb6 {[%clk 0:00:24.8]} 64... Kc2 {[%clk 0:00:11]} 65. Rb5 {[%clk
0:00:26.2]} 1/2-1/2

[Event "*** Titled Tuesday Blitz"]
[Site "Chess.com"]
[Date "2019.05.07"]
[Round "3"]
[White "Zarikovs1999"]
[Black "Satscho"]
[Result "1-0"]
[WhiteElo "2572"]
[BlackElo "2296"]
[TimeControl "180+2"]
[EndTime "13:40:55 PDT"]
[Termination "Zarikovs1999 won by resignation"]

1. e4 {[%clk 0:02:04.8]} 1... c6 {[%clk 0:02:59.5]} 2. d4 {[%clk 0:02:03.1]}
2... d5 {[%clk 0:02:50.5]} 3. Nc3 {[%clk 0:02:04.1]} 3... dxe4 {[%clk
0:02:49.6]} 4. Nxe4 {[%clk 0:02:06]} 4... Bf5 {[%clk 0:02:48.9]} 5. Ng3 {[%clk
0:02:07]} 5... Bg6 {[%clk 0:02:49.8]} 6. h4 {[%clk 0:02:08.1]} 6... h6 {[%clk
0:02:51]} 7. Nf3 {[%clk 0:02:09.5]} 7... Nd7 {[%clk 0:02:51.5]} 8. h5 {[%clk
0:02:10.9]} 8... Bh7 {[%clk 0:02:53.2]} 9. Bd3 {[%clk 0:02:12.8]} 9... Bxd3
{[%clk 0:02:54.8]} 10. Qxd3 {[%clk 0:02:14.7]} 10... Ngf6 {[%clk 0:02:47.5]} 11.
Bd2 {[%clk 0:02:13.8]} 11... e6 {[%clk 0:02:46.6]} 12. O-O-O {[%clk 0:02:14.9]}
12... Be7 {[%clk 0:02:28.9]} 13. Kb1 {[%clk 0:02:14.3]} 13... Qc7 {[%clk
0:02:27.6]} 14. Ne4 {[%clk 0:02:06.7]} 14... Nxe4 {[%clk 0:02:28.3]} 15. Qxe4
{[%clk 0:02:08.6]} 15... Nf6 {[%clk 0:02:28.8]} 16. Qe2 {[%clk 0:02:10]} 16...
Rd8 {[%clk 0:02:23.2]} 17. Be3 {[%clk 0:02:00.1]} 17... Nd5 {[%clk 0:02:07.9]}
18. c4 {[%clk 0:01:57.1]} 18... Nf4 {[%clk 0:01:53.8]} 19. Bxf4 {[%clk
0:01:54.2]} 19... Qxf4 {[%clk 0:01:55.7]} 20. g3 {[%clk 0:01:56.1]} 20... Qf5+
{[%clk 0:01:51]} 21. Qd3 {[%clk 0:01:56.3]} 21... Qxd3+ {[%clk 0:01:51.6]} 22.
Rxd3 {[%clk 0:01:58.2]} 22... O-O {[%clk 0:01:49.6]} 23. Rhd1 {[%clk 0:01:58.7]}
23... Bf6 {[%clk 0:01:49.6]} 24. Kc2 {[%clk 0:01:58.1]} 24... Rd7 {[%clk
0:01:50.1]} 25. Ne5 {[%clk 0:01:54.5]} 25... Rc7 {[%clk 0:01:43.8]} 26. f4
{[%clk 0:01:51.5]} 26... Re8 {[%clk 0:01:41]} 27. b3 {[%clk 0:01:49.3]} 27... c5
{[%clk 0:01:39]} 28. Nf3 {[%clk 0:01:30.3]} 28... cxd4 {[%clk 0:01:32.9]} 29.
Nxd4 {[%clk 0:01:32.2]} 29... e5 {[%clk 0:01:31.8]} 30. Nb5 {[%clk 0:01:29.8]}
30... Rce7 {[%clk 0:01:32.3]} 31. Nd6 {[%clk 0:01:22.3]} 31... Rb8 {[%clk
0:01:22.7]} 32. Nf5 {[%clk 0:01:10.7]} 32... Ree8 {[%clk 0:01:12.7]} 33. Rd6
{[%clk 0:00:38.1]} 33... exf4 {[%clk 0:01:09.6]} 34. gxf4 {[%clk 0:00:36.9]}
34... Re2+ {[%clk 0:01:08.6]} 35. R1d2 {[%clk 0:00:36.3]} 35... Rxd2+ {[%clk
0:00:49.5]} 36. Kxd2 {[%clk 0:00:38.2]} 36... Kf8 {[%clk 0:00:37.5]} 37. Kd3
{[%clk 0:00:22.3]} 37... Rd8 {[%clk 0:00:31.9]} 38. Rxd8+ {[%clk 0:00:13.9]}
38... Bxd8 {[%clk 0:00:33.8]} 39. Ke4 {[%clk 0:00:15.8]} 39... Bf6 {[%clk
0:00:31.9]} 40. Kd5 {[%clk 0:00:15.2]} 40... Bc3 {[%clk 0:00:19.6]} 41. Nd6
{[%clk 0:00:13.1]} 41... b6 {[%clk 0:00:17.4]} 42. Nc8 {[%clk 0:00:13.8]} 42...
Bd2 {[%clk 0:00:16.4]} 43. Ke4 {[%clk 0:00:14.5]} 43... Ke8 {[%clk 0:00:11.2]}
44. f5 {[%clk 0:00:14]} 44... Kd7 {[%clk 0:00:10.4]} 45. Nxa7 {[%clk 0:00:15.2]}
45... Bg5 {[%clk 0:00:08.9]} 46. Nb5 {[%clk 0:00:16]} 46... Kc6 {[%clk
0:00:10.2]} 47. Kd4 {[%clk 0:00:09.7]} 47... Bf6+ {[%clk 0:00:11.2]} 48. Kd3
{[%clk 0:00:11.2]} 48... Be7 {[%clk 0:00:12.7]} 49. Nd4+ {[%clk 0:00:11.7]}
49... Kc5 {[%clk 0:00:14.2]} 50. Kc3 {[%clk 0:00:12.5]} 50... Bf6 {[%clk
0:00:14.7]} 51. b4+ {[%clk 0:00:13.8]} 51... Kd6 {[%clk 0:00:16.3]} 52. Kd3
{[%clk 0:00:15.2]} 52... Be7 {[%clk 0:00:15.6]} 53. Ke4 {[%clk 0:00:15.1]} 53...
Kc7 {[%clk 0:00:13.5]} 54. a3 {[%clk 0:00:15.8]} 54... Bf6 {[%clk 0:00:12.4]}
55. Kd5 {[%clk 0:00:15.9]} 55... Be7 {[%clk 0:00:12.1]} 56. Nb5+ {[%clk
0:00:16.7]} 56... Kb7 {[%clk 0:00:13.7]} 57. c5 {[%clk 0:00:16.2]} 57... bxc5
{[%clk 0:00:15.6]} 58. bxc5 {[%clk 0:00:18.1]} 58... Ka6 {[%clk 0:00:16.9]} 59.
Kc4 {[%clk 0:00:18.4]} 59... Bd8 {[%clk 0:00:17]} 60. Nd6 {[%clk 0:00:16]} 60...
f6 {[%clk 0:00:17.5]} 61. Ne8 {[%clk 0:00:17.1]} 1-0

[Event "*** Titled Tuesday Blitz"]
[Site "Chess.com"]
[Date "2019.05.07"]
[Round "3"]
[White "maxip32"]
[Black "Jadeit90"]
[Result "1-0"]
[WhiteElo "2416"]
[BlackElo "2378"]
[TimeControl "180+2"]
[EndTime "13:41:19 PDT"]
[Termination "maxip32 won by resignation"]

1. e4 {[%clk 0:03:01.9]} 1... g6 {[%clk 0:03:00.5]} 2. d4 {[%clk 0:03:02.6]}
2... Bg7 {[%clk 0:03:00.3]} 3. Nc3 {[%clk 0:03:02.8]} 3... c5 {[%clk 0:02:57]}
4. Nf3 {[%clk 0:02:54.1]} 4... cxd4 {[%clk 0:02:58.1]} 5. Nxd4 {[%clk
0:02:54.4]} 5... Nc6 {[%clk 0:03:00]} 6. Be3 {[%clk 0:02:54]} 6... Nf6 {[%clk
0:03:01.3]} 7. Bc4 {[%clk 0:02:52.7]} 7... O-O {[%clk 0:03:02.4]} 8. f3 {[%clk
0:02:52.7]} 8... Qb6 {[%clk 0:03:03.2]} 9. Ncb5 {[%clk 0:02:18.3]} 9... a6
{[%clk 0:02:55.4]} 10. Nf5 {[%clk 0:02:11.3]} 10... Qa5+ {[%clk 0:02:46.5]} 11.
Bd2 {[%clk 0:02:12.1]} 11... Qd8 {[%clk 0:02:42.3]} 12. Nxg7 {[%clk 0:02:08.1]}
12... axb5 {[%clk 0:02:41.3]} 13. Bxb5 {[%clk 0:01:48]} 13... Kxg7 {[%clk
0:02:42.2]} 14. h4 {[%clk 0:01:48.8]} 14... h5 {[%clk 0:02:41.8]} 15. Bc3 {[%clk
0:01:42.9]} 15... d6 {[%clk 0:02:42.2]} 16. Qd2 {[%clk 0:01:42.5]} 16... Be6
{[%clk 0:02:37.6]} 17. a4 {[%clk 0:01:41.5]} 17... Ne5 {[%clk 0:02:35.4]} 18. b3
{[%clk 0:01:30.8]} 18... Rc8 {[%clk 0:02:34.6]} 19. O-O-O {[%clk 0:01:29.7]}
19... Qc7 {[%clk 0:02:26.3]} 20. Kb2 {[%clk 0:01:30]} 20... Rfd8 {[%clk
0:02:24.2]} 21. f4 {[%clk 0:01:25.2]} 21... Neg4 {[%clk 0:02:22.5]} 22. Bd4
{[%clk 0:01:24.1]} 22... Kg8 {[%clk 0:02:17.1]} 23. Rde1 {[%clk 0:01:20.2]}
23... d5 {[%clk 0:02:13.7]} 24. f5 {[%clk 0:01:19.7]} 24... Bd7 {[%clk 0:01:54]}
25. fxg6 {[%clk 0:01:14.4]} 25... fxg6 {[%clk 0:01:53.3]} 26. exd5 {[%clk
0:01:05.1]} 26... Bxb5 {[%clk 0:01:52]} 27. axb5 {[%clk 0:01:07]} 27... Rxd5
{[%clk 0:01:48.9]} 28. c4 {[%clk 0:01:08]} 28... Rf5 {[%clk 0:01:47.6]} 29. Rhf1
{[%clk 0:01:01.4]} 29... Rxf1 {[%clk 0:01:46.8]} 30. Rxf1 {[%clk 0:01:02.1]}
30... Rd8 {[%clk 0:01:46.9]} 31. Qd3 {[%clk 0:00:56.6]} 31... Kf7 {[%clk
0:01:45.4]} 32. Qc3 {[%clk 0:00:54]} 32... Qd6 {[%clk 0:01:37.3]} 33. Bxf6
{[%clk 0:00:44.9]} 33... Nxf6 {[%clk 0:01:34.1]} 34. Rf2 {[%clk 0:00:45.1]}
34... Qd4 {[%clk 0:01:33.9]} 35. Qxd4 {[%clk 0:00:44.5]} 35... Rxd4 {[%clk
0:01:35.8]} 36. Rc2 {[%clk 0:00:45.1]} 36... Rxh4 {[%clk 0:01:32.7]} 37. c5
{[%clk 0:00:47]} 37... Rd4 {[%clk 0:01:33.2]} 38. c6 {[%clk 0:00:48.2]} 38...
bxc6 {[%clk 0:01:33.8]} 39. bxc6 {[%clk 0:00:50.1]} 39... Rd8 {[%clk 0:01:34.8]}
40. b4 {[%clk 0:00:50.3]} 40... Nd5 {[%clk 0:01:34.6]} 41. b5 {[%clk 0:00:51.2]}
41... Nb6 {[%clk 0:01:35.5]} 42. Kb3 {[%clk 0:00:51.7]} 42... Ke6 {[%clk
0:01:31.8]} 43. Kb4 {[%clk 0:00:51.6]} 43... Kd6 {[%clk 0:01:32.9]} 44. Rd2+
{[%clk 0:00:51.8]} 44... Kc7 {[%clk 0:01:34]} 45. Ra2 {[%clk 0:00:50.1]} 45...
Ra8 {[%clk 0:01:28.1]} 46. Re2 {[%clk 0:00:44.7]} 46... Ra4+ {[%clk 0:01:03]}
47. Kb3 {[%clk 0:00:45.5]} 47... Rg4 {[%clk 0:01:03.2]} 48. Rxe7+ {[%clk
0:00:45.6]} 48... Kd6 {[%clk 0:01:03.6]} 49. Rb7 {[%clk 0:00:45.6]} 49... Nd5
{[%clk 0:01:04.4]} 50. Rd7+ {[%clk 0:00:44.9]} 50... Kc5 {[%clk 0:01:05]} 51.
Rxd5+ {[%clk 0:00:43.8]} 51... Kxd5 {[%clk 0:01:05.3]} 52. c7 {[%clk 0:00:44.9]}
52... Rc4 {[%clk 0:01:05.5]} 53. b6 {[%clk 0:00:46.1]} 53... Rc6 {[%clk
0:00:57.6]} 54. b7 {[%clk 0:00:43.4]} 54... Rxc7 {[%clk 0:00:58.6]} 55. b8=Q
{[%clk 0:00:44.1]} 55... Rc6 {[%clk 0:00:59.5]} 56. Qb7 {[%clk 0:00:43.1]} 56...
Kc5 {[%clk 0:00:57.3]} 57. Kc3 {[%clk 0:00:41.6]} 57... Re6 {[%clk 0:00:55.7]}
58. Kd3 {[%clk 0:00:41.4]} 58... Kd6 {[%clk 0:00:55.8]} 59. Qg7 {[%clk
0:00:41.1]} 59... Kd5 {[%clk 0:00:39.5]} 60. Qd4+ {[%clk 0:00:40]} 60... Kc6
{[%clk 0:00:40.5]} 61. Qc4+ {[%clk 0:00:40.8]} 61... Kd6 {[%clk 0:00:41.7]} 62.
Kd4 {[%clk 0:00:42]} 62... Ke7 {[%clk 0:00:42.8]} 63. Qc7+ {[%clk 0:00:38.8]}
63... Kf6 {[%clk 0:00:43.5]} 64. Qd8+ {[%clk 0:00:39.4]} 64... Kf7 {[%clk
0:00:43.2]} 65. Kd5 {[%clk 0:00:38.8]} 65... Rf6 {[%clk 0:00:44.2]} 66. Qd7+
{[%clk 0:00:36.9]} 66... Kg8 {[%clk 0:00:44.5]} 67. Qe8+ {[%clk 0:00:38]} 67...
Kg7 {[%clk 0:00:45.8]} 68. Qe7+ {[%clk 0:00:39.3]} 68... Rf7 {[%clk 0:00:46.3]}
69. Qe4 {[%clk 0:00:37.3]} 69... Rf5+ {[%clk 0:00:46.7]} 70. Ke6 {[%clk
0:00:38.5]} 70... Kh6 {[%clk 0:00:44.7]} 71. Qa8 {[%clk 0:00:38.8]} 71... Kh7
{[%clk 0:00:45.5]} 72. Qe8 {[%clk 0:00:39.1]} 72... Kg7 {[%clk 0:00:46.5]} 73.
Qe7+ {[%clk 0:00:39.9]} 73... Kh6 {[%clk 0:00:47.3]} 74. Qd7 {[%clk 0:00:38.9]}
74... Kg5 {[%clk 0:00:44.6]} 75. Qg7 {[%clk 0:00:39.6]} 75... h4 {[%clk
0:00:43.2]} 76. Qh8 {[%clk 0:00:37.5]} 76... Kg4 {[%clk 0:00:43.2]} 77. Qc3
{[%clk 0:00:35.3]} 77... g5 {[%clk 0:00:40.2]} 78. Qh3+ {[%clk 0:00:33.9]} 1-0